fUST/lending_fUST_20251115
["ID","MTS","AMOUNT","RATE_DAILY","PERIOD"]
[393980477,1763157017536,250.0,0.00039082,10]
[393980478,1763157017567,151.0,0.00039082,30]
[393980479,1763157017734,250.0,0.00039082,10]
[393980480,1763157018156,250.0,0.00039082,10]
[393980481,1763157018187,151.0,0.00039082,120]
[393980482,1763157018350,250.0,0.00039082,10]
[393980483,1763157018446,151.0,0.00039082,30]
[393980484,1763157018488,209.40437684,0.00039082,10]
[393980485,1763157018847,250.0,0.00039082,10]
[393980486,1763157018903,151.0,0.00039082,30]
[393980487,1763157019014,250.0,0.00039082,10]
[393980488,1763157019125,151.0,0.00039082,120]
[393980489,1763157019159,217.15233878,0.00039082,10]
[393980490,1763157019787,250.0,0.00039082,10]
[393980491,1763157019822,151.0,0.00039082,10]
[393980492,1763157019853,250.0,0.00039082,10]
[393980493,1763157019894,225.18697532,0.00039082,10]
[393980494,1763157020168,151.0,0.00039082,10]
[393980495,1763157020231,151.0,0.00039082,30]
[393980496,1763157020277,250.0,0.00039082,10]
[393980497,1763157020403,233.51889341,0.00039082,10]
[393980498,1763157020821,151.0,0.00039082,10]
[393980499,1763157020891,151.0,0.00039082,120]
[393980500,1763157021039,242.15909246,0.00039082,10]
[393980501,1763157021465,151.0,0.00039082,10]
[393980502,1763157021666,251.11897888,0.00039082,10]
[393980503,1763157022079,151.0,0.00039082,10]
[393980504,1763157022108,151.0,0.00039082,60]
[393980505,1763157022290,260.4103811,0.00039082,10]
[393980506,1763157022716,151.0,0.00039082,35]
[393980507,1763157022747,151.0,0.00039082,10]
[393980508,1763157022777,250.0,0.00039082,30]
[393980509,1763157022920,270.0455652,0.00039082,10]
[393980510,1763157023431,250.0,0.00039082,120]
[393980511,1763157023541,280.03725112,0.00039082,10]
[393980512,1763157023636,151.0,0.00039082,35]
[393980513,1763157024180,290.39862941,0.00039082,10]
[393980514,1763157024408,250.0,0.00039082,30]
[393980515,1763157024820,290.39862941,0.00039082,10]
[393980516,1763157025077,250.0,0.00039082,120]
[393980517,1763157025768,250.0,0.00039082,60]
[393980518,1763157026384,250.0,0.00039082,35]
[393980519,1763157027070,250.0,0.00039082,35]
[393980520,1763157030247,151.0,0.00039082,30]
[393980521,1763157031359,156.587,0.00039082,120]
[393980525,1763157031985,162.380719,0.00039082,30]
[393980552,1763157032617,168.3888056,0.00039082,120]
[393980564,1763157032732,-300.0,0.0002242,2]
[393980566,1763157032743,-500.0,0.0002242,2]
[393980568,1763157032753,-110.04845071,0.00022421,2]
[393980613,1763157033214,174.61919141,0.00039082,60]
[393980651,1763157033815,181.08010149,0.00039082,35]
[393980703,1763157034439,181.08010149,0.00039082,35]
[393980799,1763157039408,-389.95154929,0.00022421,2]
[393980800,1763157039418,-500.0,0.00022421,2]
[393980801,1763157039427,-500.0,0.00022421,2]
[393980802,1763157039437,-500.0,0.00022421,2]
[393980803,1763157039446,-500.0,0.00022421,2]
[393980804,1763157039458,-500.0,0.00022421,2]
[393980805,1763157039467,-500.0,0.00022421,2]
[393980806,1763157039477,-500.0,0.00022421,2]
[393980807,1763157039486,-500.0,0.00022421,2]
[393980808,1763157039496,-500.0,0.00022421,2]
[393980809,1763157039505,-500.0,0.00022421,2]
[393980810,1763157039514,-500.0,0.00022421,2]
[393980811,1763157039523,-500.0,0.00022421,2]
[393980812,1763157039533,-500.0,0.00022421,2]
[393980813,1763157039542,-500.0,0.00022421,2]
[393980814,1763157039551,-500.0,0.00022421,2]
[393980815,1763157039560,-500.0,0.00022421,2]
[393980816,1763157039569,-500.0,0.00022421,2]
[393980817,1763157039578,-180.72344471,0.00022421,2]
[393980818,1763157039590,-319.27655529,0.00022421,2]
[393980819,1763157039600,-500.0,0.00022421,2]
[393980820,1763157039609,-500.0,0.00022421,2]
[393980821,1763157039618,-500.0,0.00022421,2]
[393980822,1763157039628,-500.0,0.00022421,2]
[393980823,1763157039637,-304.51768185,0.00022421,2]
[393980824,1763157039647,-500.0,0.00022421,2]
[393980825,1763157039657,-500.0,0.00022421,2]
[393980826,1763157039666,-500.0,0.00022421,2]
[393980827,1763157039677,-500.0,0.00022421,2]
[393980828,1763157039686,-182.01833751,0.00022421,2]
[393980829,1763157039695,-500.0,0.00022421,2]
[393980830,1763157039707,-198.40332846,0.00022421,2]
[393980831,1763157039716,-1510.2,0.00022421,2]
[393980832,1763157039726,-1510.2,0.00022421,2]
[393980833,1763157039736,-1510.2,0.00022421,2]
[393980834,1763157039745,-1510.2,0.00022421,2]
[393980835,1763157039754,-1510.2,0.00022421,2]
[393980836,1763157039764,-1510.2,0.00022421,2]
[393980837,1763157039773,-1510.2,0.00022421,2]
[393980838,1763157039782,-1510.2,0.00022421,2]
[393980839,1763157039791,-1510.2,0.00022421,2]
[393980840,1763157039800,-1510.2,0.00022421,2]
[393980841,1763157039809,-500.0,0.00022421,2]
[393980842,1763157039819,-500.0,0.00022421,2]
[393980843,1763157039828,-500.0,0.00022421,2]
[393980844,1763157039837,-500.0,0.00022421,2]
[393980845,1763157039846,-500.0,0.00022421,2]
[393980846,1763157039855,-500.0,0.00022421,2]
[393980847,1763157039865,-500.0,0.00022421,2]
[393980848,1763157039874,-500.0,0.00022421,2]
[393980849,1763157039883,-500.0,0.00022421,2]
[393980851,1763157039892,-500.0,0.00022421,2]
[393980852,1763157039902,-5126.4425761,0.00022444,2]
[393980853,1763157039911,-448.05593587,0.00022473,2]
[393980854,1763157039920,-584.90525198,0.00022473,2]
[393980855,1763157039929,-274.63238477,0.00022473,2]
[393980856,1763157039938,-500.0,0.00022473,2]
[393980857,1763157039947,-500.0,0.00022473,2]
[393980858,1763157039957,-500.0,0.00022473,2]
[393980859,1763157039967,-500.0,0.00022473,2]
[393980860,1763157039976,-500.0,0.00022473,2]
[393980861,1763157039986,-500.0,0.00022473,2]
[393980862,1763157039995,-222.00075868,0.00022473,2]
[393980863,1763157040004,-500.0,0.00022473,2]
[393980864,1763157040014,-502.17896733,0.00022473,2]
[393980865,1763157040023,-500.0,0.00022473,2]
[393980866,1763157040033,-500.0,0.00022473,2]
[393980868,1763157040042,-500.0,0.00022473,2]
[393980870,1763157040052,-1510.2,0.00022497,2]
[393980871,1763157040061,-1510.2,0.00022497,2]
[393980872,1763157040070,-1510.2,0.00022497,2]
[393980873,1763157040079,-1510.2,0.00022497,2]
[393980878,1763157040089,-500.0,0.00022497,2]
[393980879,1763157040203,-500.0,0.00022497,2]
[393980880,1763157040213,-500.0,0.00022497,2]
[393980881,1763157040222,-500.0,0.00022497,2]
[393980882,1763157040231,-1510.2,0.00022527,2]
[393980883,1763157040240,-500.0,0.00022527,2]
[393980884,1763157040250,-739.14273164,0.00022565,2]
[393980885,1763157040259,-1000.0,0.00022571,30]
[393980886,1763157040272,-2930.2480634,0.00022601,2]
[393980887,1763157040281,-213.460518,0.00022678,2]
[393980888,1763157040291,-300.0,0.00022765,20]
[393980889,1763157040302,-300.0,0.00022765,20]
[393980890,1763157040312,-300.0,0.00022868,20]
[393980891,1763157040321,-300.0,0.00022868,20]
[393980892,1763157040331,-300.0,0.00022868,20]
[393980893,1763157040340,-300.0,0.00022868,20]
[393980894,1763157040350,-653.8267196,0.00022875,2]
[393980895,1763157040359,-497.21368798,0.00022921,2]
[393980896,1763157040368,-1000.0,0.00022921,2]
[393980897,1763157040380,-1000.0,0.00022921,2]
[393980898,1763157040389,-501.93643937,0.00023021,2]
[393980899,1763157040399,-500.0,0.00023021,2]
[393980900,1763157040408,-390.48259364,0.00023021,2]
[393980901,1763157040418,-1000.0,0.00023021,2]
[393980902,1763157040427,-499.75434709,0.00023021,2]
[393980903,1763157040436,-584.21305603,0.00023021,2]
[393980904,1763157040446,-1000.0,0.00023021,2]
[393980905,1763157040456,-1000.0,0.00023021,2]
[393980907,1763157040466,-500.0,0.00023021,2]
[393980909,1763157040476,-150.0,0.00023335,2]
[393980910,1763157040486,-645.64833834,0.00023468,2]
[393980912,1763157040495,-180.0,0.00023491,2]
[393980913,1763157040504,-870.9437848,0.00023568,2]
[393980915,1763157040514,-1500.0,0.00023568,2]
[393980917,1763157040524,-247.5602827,0.00023951,2]
[393980919,1763157040533,-175.42592978,0.00024115,2]
[393980920,1763157040542,-1510.2,0.00024116,2]
[393980922,1763157040551,-500.0,0.00024116,2]
[393980923,1763157040561,-2000.0,0.00024116,2]
[393980924,1763157040571,-18358.03506156,0.00024142,2]
[393980925,1763157040580,-500.0,0.00024173,2]
[393980926,1763157040590,-501.53688474,0.00024173,2]
[393980927,1763157040599,-500.0,0.00024173,2]
[393980928,1763157040608,-493.97907115,0.00024173,2]
[393980929,1763157040618,-500.0,0.00024173,2]
[393980930,1763157040627,-500.0,0.00024173,2]
[393980931,1763157040637,-500.0,0.00024173,2]
[393980932,1763157040646,-500.0,0.00024173,2]
[393980933,1763157040655,-500.0,0.00024173,2]
[393980934,1763157040664,-521.91565876,0.00024173,2]
[393980935,1763157040674,-500.0,0.00024173,2]
[393980936,1763157040683,-514.37580653,0.00024173,2]
[393980937,1763157040692,-500.0,0.00024173,2]
[393980938,1763157040701,-150.0,0.00024268,2]
[393980939,1763157040710,-182.60231624,0.00024347,2]
[393980940,1763157040719,-420.0,0.00024353,2]
[393980941,1763157040728,-734.22771344,0.00024721,2]
[393980942,1763157040737,-505.31638174,0.00024721,2]
[393980943,1763157040747,-1000.0,0.00024721,2]
[393980944,1763157040757,-500.0,0.00024721,2]
[393980945,1763157040775,-1510.2,0.00024772,2]
[393980946,1763157040784,-500.0,0.00024772,2]
[393980947,1763157040794,-500.0,0.00024773,2]
[393980948,1763157040803,-500.0,0.00024873,2]
[393980949,1763157040812,-1510.2,0.00024899,2]
[393980950,1763157040821,-1510.2,0.00024899,2]
[393980951,1763157040831,-1510.2,0.00024899,2]
[393980952,1763157040841,-1510.2,0.00024899,2]
[393980953,1763157040852,-1510.2,0.00024899,2]
[393980954,1763157040861,-1510.2,0.00024899,2]
[393980955,1763157040870,-1510.25007462,0.00024899,2]
[393980956,1763157040880,-500.0,0.00024899,2]
[393980957,1763157040889,-500.0,0.00024899,2]
[393980958,1763157040898,-500.0,0.00024899,2]
[393980959,1763157040907,-500.0,0.00024899,2]
[393980960,1763157040916,-500.0,0.00024899,2]
[393980961,1763157040926,-500.0,0.00024899,2]
[393980962,1763157040935,-455.04459217,0.00024899,2]
[393980963,1763157040944,-191.737622,0.000249,2]
[393980964,1763157040954,-50444.09054684,0.000249,2]
[393980965,1763157041494,-32069.14953427,0.000249,2]
[393980976,1763157046571,-505.02073508,0.000249,2]
[393980978,1763157049049,150.0,0.00018923,2]
[393980979,1763157049451,150.0,0.00019824,2]
[393980980,1763157069035,250.0,0.00039082,10]
[393980981,1763157069434,250.0,0.00039082,10]
[393980982,1763157069738,250.0,0.00039082,10]
[393980983,1763157109895,182.57389676,0.00022321,2]
[393980984,1763157163598,235.9,0.00039082,30]
[393980985,1763157309405,160.0,0.00024915,120]
[393980986,1763157309827,250.0,0.00039031,30]
[393980987,1763157310458,250.0,0.00039031,30]
[393980988,1763157310870,160.0,0.00026161,120]
[393980989,1763157311134,250.0,0.00039031,30]
[393980990,1763157311836,250.0,0.00039031,30]
[393980991,1763157312404,160.0,0.00027469,120]
[393980992,1763157312520,250.0,0.00039031,30]
[393980993,1763157313132,250.0,0.00039031,30]
[393980994,1763157313768,250.0,0.00039031,30]
[393980995,1763157313946,160.0,0.00028842,120]
[393980996,1763157314548,250.0,0.00039031,30]
[393980997,1763157315205,250.0,0.00039031,30]
[393980998,1763157315858,250.0,0.00039031,30]
[393980999,1763157316643,250.0,0.00039031,30]
[393981000,1763157317248,250.0,0.00039031,30]
[393981001,1763157317872,250.0,0.00039031,30]
[393981002,1763157318517,250.0,0.00039031,30]
[393981003,1763157318633,151.0,0.00039031,30]
[393981004,1763157319115,250.0,0.00039031,30]
[393981005,1763157319229,156.587,0.00039031,30]
[393981006,1763157320075,250.0,0.00039031,30]
[393981007,1763157320200,162.380719,0.00039031,30]
[393981008,1763157320335,250.0,0.00039031,30]
[393981009,1763157320452,168.3888056,0.00039031,30]
[393981010,1763157320973,250.0,0.00039031,30]
[393981011,1763157321074,174.61919141,0.00039031,30]
[393981012,1763157321612,250.0,0.00039031,30]
[393981013,1763157321711,181.08010149,0.00039031,30]
[393981014,1763157322212,250.0,0.00039031,30]
[393981015,1763157322309,187.78006525,0.00039031,30]
[393981016,1763157322888,194.72792766,0.00039031,30]
[393981017,1763157323554,201.93286099,0.00039031,30]
[393981018,1763157324159,209.40437684,0.00039031,30]
[393981019,1763157324777,209.40437684,0.00039031,30]
[393981020,1763157368844,250.0,0.00039031,10]
[393981021,1763157369248,295.170758,0.00039031,10]
[393981035,1763157534397,-150.0,0.00019126,2]
[393981036,1763157613119,250.0,0.00039031,30]
[393981037,1763157613731,250.0,0.00039031,30]
[393981038,1763157614394,250.0,0.00039031,30]
[393981039,1763157615180,250.0,0.00039031,30]
[393981040,1763157615823,250.0,0.00039031,30]
[393981041,1763157616457,250.0,0.00039031,30]
[393981042,1763157617088,250.0,0.00039031,30]
[393981043,1763157617751,250.0,0.00039031,30]
[393981044,1763157618368,250.0,0.00039031,30]
[393981045,1763157619121,250.0,0.00039031,30]
[393981046,1763157619916,250.0,0.00039031,30]
[393981047,1763157620265,250.0,0.00039031,30]
[393981048,1763157620930,250.0,0.00039031,30]
[393981049,1763157621680,250.0,0.00039031,30]
[393981050,1763157622296,250.0,0.00039031,30]
[393981051,1763157622933,250.0,0.00039031,30]
[393981052,1763157623530,250.0,0.00039031,30]
[393981053,1763157624323,250.0,0.00039031,30]
[393981054,1763157624959,250.0,0.00039031,30]
[393981060,1763157763410,150.0,0.00039027,30]
[393981068,1763158147215,-161.09786868,0.00020342,2]
[393981069,1763158147239,-150.0,0.0002066,2]
[393981070,1763158147257,-435.31292,0.00020854,2]
[393981071,1763158147275,-250.0,0.00021022,2]
[393981072,1763158147294,-2166.8958239,0.00021294,2]
[393981073,1763158147315,-150.0,0.00021644,2]
[393981074,1763158147334,-178.677,0.00021875,2]
[393981075,1763158147353,-160.0,0.00022205,2]
[393981076,1763158147478,-623364.32810039,0.00022219,2]
[393981096,1763158232588,-282.34546992,0.00022218,2]
[393981099,1763158232599,-217.65453008,0.00022218,2]
[393981101,1763158232609,-273.10291237,0.00022218,2]
[393981105,1763158232648,-226.89708763,0.00022218,2]
[393981107,1763158232660,-500.0,0.00022218,2]
[393981108,1763158232671,-300.70291237,0.00022218,2]
[393981109,1763158232689,-199.29708763,0.00022218,2]
[393981110,1763158232699,-500.0,0.00022218,2]
[393981111,1763158232710,-500.0,0.00022218,2]
[393981112,1763158232720,-500.0,0.00022218,2]
[393981113,1763158232730,-500.0,0.00022218,2]
[393981114,1763158232740,-0.80498909,0.00022218,2]
[393981115,1763158232766,-499.19501091,0.00022218,2]
[393981117,1763158232775,-500.0,0.00022218,2]
[393981119,1763158232787,-500.0,0.00022218,2]
[393981121,1763158232796,-223.12765576,0.00022218,2]
[393981123,1763158232806,-300.0,0.00022218,2]
[393981125,1763158232815,-500.0,0.00022218,2]
[393981127,1763158232825,-256.27713806,0.00022218,2]
[393981129,1763158232834,-21016.75483907,0.00022219,2]
[393981131,1763158232846,-21843.96433526,0.00022219,2]
[393981147,1763158238623,-620.60998794,0.00022108,8]
[393981148,1763158238633,-70361.90848511,0.00022219,2]
[393981149,1763158238644,-2193.4165003,0.00022219,2]
[393981449,1763158244349,-41.0305531,0.00022219,2]
[393981460,1763158246971,-641.0,0.00022219,2]
[393981465,1763158447139,734.575149,0.00013699,2]
[393981467,1763158478842,150.0,0.00019151,2]
[393981468,1763158555039,150.0,0.00018856,2]
[393981469,1763158555612,150.0,0.00019754,2]
[393981470,1763158632156,150.0,0.00019234,2]
[393981471,1763158656887,545.24781332,0.00019999,2]
[393981472,1763158671732,5000.0,0.00019999,2]
[393981473,1763158679496,1095.61606934,0.00019999,2]
[393981474,1763158687747,2024.57096834,0.00019999,2]
[393981475,1763158687772,2975.42903166,0.00019999,2]
[393981476,1763158695222,5000.0,0.00019999,2]
[393981477,1763158708765,150.0,0.00019016,2]
[393981478,1763158709184,150.0,0.00019922,2]
[393981479,1763158713543,1724.58096834,0.00019999,2]
[393981480,1763158713567,3275.41903166,0.00019999,2]
[393981481,1763158721556,5000.0,0.00019999,2]
[393981482,1763158736730,1724.59096834,0.00019999,2]
[393981483,1763158736771,3275.40903166,0.00019999,2]
[393981484,1763158745042,5000.0,0.00019999,2]
[393981485,1763158767783,1724.60096834,0.00019999,2]
[393981486,1763158769011,-369.41204764,0.00019999,2]
[393981487,1763158772929,-901.76406523,0.00019999,2]
[393981488,1763158774890,-309.2,0.00019999,2]
[393981489,1763158779275,2000.0,0.0003901,10]
[393981490,1763158785160,150.0,0.00018936,2]
[393981491,1763158785558,150.0,0.00019837,2]
[393981493,1763158805922,151.0,0.0003901,30]
[393981494,1763158806015,151.0,0.0003901,30]
[393981495,1763158806546,151.0,0.0003901,30]
[393981496,1763158806623,151.0,0.0003901,30]
[393981497,1763158807166,151.0,0.0003901,30]
[393981498,1763158807256,151.0,0.0003901,30]
[393981499,1763158807821,151.0,0.0003901,30]
[393981500,1763158807908,151.0,0.0003901,30]
[393981501,1763158808432,151.0,0.0003901,30]
[393981502,1763158808517,250.0,0.0003901,30]
[393981503,1763158808598,151.0,0.0003901,30]
[393981504,1763158808692,151.0,0.0003901,30]
[393981505,1763158808847,250.0,0.0003901,30]
[393981506,1763158809042,151.0,0.0003901,30]
[393981507,1763158809127,250.0,0.0003901,30]
[393981508,1763158809211,151.0,0.0003901,30]
[393981509,1763158809321,151.0,0.0003901,30]
[393981510,1763158809407,250.0,0.0003901,30]
[393981511,1763158809640,151.0,0.0003901,30]
[393981512,1763158809721,250.0,0.0003901,30]
[393981513,1763158809804,151.0,0.0003901,30]
[393981514,1763158809900,151.0,0.0003901,30]
[393981515,1763158810248,151.0,0.0003901,30]
[393981516,1763158810344,250.0,0.0003901,30]
[393981517,1763158810429,151.0,0.0003901,30]
[393981518,1763158810506,250.0,0.0003901,30]
[393981519,1763158810587,151.0,0.0003901,30]
[393981520,1763158810922,151.0,0.0003901,30]
[393981521,1763158811007,250.0,0.0003901,30]
[393981522,1763158811090,151.0,0.0003901,30]
[393981523,1763158811172,250.0,0.0003901,30]
[393981524,1763158811261,151.0,0.0003901,30]
[393981525,1763158811553,151.0,0.0003901,30]
[393981526,1763158811646,250.0,0.0003901,30]
[393981527,1763158811740,250.0,0.0003901,30]
[393981528,1763158811837,151.0,0.0003901,30]
[393981529,1763158812377,250.0,0.0003901,30]
[393981530,1763158812467,250.0,0.0003901,30]
[393981531,1763158812661,151.0,0.0003901,30]
[393981532,1763158812744,250.0,0.0003901,30]
[393981533,1763158812886,250.0,0.0003901,30]
[393981534,1763158813040,250.0,0.0003901,30]
[393981535,1763158813118,250.0,0.0003901,30]
[393981536,1763158813445,250.0,0.0003901,30]
[393981537,1763158813630,250.0,0.0003901,30]
[393981538,1763158813766,250.0,0.0003901,30]
[393981539,1763158814094,250.0,0.0003901,30]
[393981540,1763158814279,250.0,0.0003901,30]
[393981541,1763158814489,250.0,0.0003901,30]
[393981542,1763158814867,250.0,0.0003901,30]
[393981543,1763158815058,250.0,0.0003901,30]
[393981544,1763158815156,250.0,0.0003901,30]
[393981545,1763158815499,250.0,0.0003901,30]
[393981546,1763158815608,250.0,0.0003901,30]
[393981547,1763158815754,250.0,0.0003901,30]
[393981548,1763158816113,250.0,0.0003901,30]
[393981549,1763158816225,250.0,0.0003901,30]
[393981550,1763158816370,250.0,0.0003901,30]
[393981551,1763158816731,250.0,0.0003901,30]
[393981552,1763158816821,250.0,0.0003901,30]
[393981553,1763158816974,250.0,0.0003901,30]
[393981554,1763158817359,250.0,0.0003901,30]
[393981555,1763158817440,250.0,0.0003901,30]
[393981556,1763158817644,250.0,0.0003901,30]
[393981557,1763158817988,250.0,0.0003901,30]
[393981558,1763158818091,250.0,0.0003901,30]
[393981559,1763158818221,250.0,0.0003901,30]
[393981560,1763158818659,250.0,0.0003901,30]
[393981561,1763158818757,250.0,0.0003901,30]
[393981562,1763158818941,250.0,0.0003901,30]
[393981563,1763158819421,250.0,0.0003901,30]
[393981564,1763158819515,250.0,0.0003901,30]
[393981565,1763158820041,250.0,0.0003901,30]
[393981566,1763158820688,250.0,0.0003901,30]
[393981567,1763158821312,250.0,0.0003901,30]
[393981568,1763158822755,250.0,0.0003901,30]
[393981569,1763158823387,250.0,0.0003901,30]
[393981570,1763158823994,250.0,0.0003901,30]
[393981571,1763158824629,250.0,0.0003901,30]
[393981572,1763158825033,414.0,0.0003901,30]
[393981573,1763158825275,250.0,0.0003901,30]
[393981574,1763158825762,429.318,0.0003901,30]
[393981575,1763158825853,151.0,0.0003901,30]
[393981576,1763158825967,250.0,0.0003901,30]
[393981577,1763158826430,445.202766,0.0003901,30]
[393981578,1763158826544,250.0,0.0003901,30]
[393981579,1763158826936,151.0,0.0003901,30]
[393981580,1763158827035,461.67526834,0.0003901,30]
[393981581,1763158827640,478.75725327,0.0003901,30]
[393981582,1763158828240,496.47127164,0.0003901,30]
[393981583,1763158828457,-189.90951677,0.00019999,2]
[393981584,1763158828859,514.84070869,0.0003901,30]
[393981585,1763158829480,514.84070869,0.0003901,30]
[393981586,1763158829750,151.0,0.0003901,30]
[393981587,1763158830401,156.587,0.0003901,30]
[393981588,1763158830619,-505.35222793,0.00019999,2]
[393981589,1763158831511,162.380719,0.0003901,30]
[393981590,1763158832159,168.3888056,0.0003901,30]
[393981591,1763158832557,151.0,0.0003901,30]
[393981592,1763158832960,174.61919141,0.0003901,30]
[393981593,1763158833204,156.587,0.0003901,30]
[393981594,1763158833521,181.08010149,0.0003901,30]
[393981595,1763158833788,162.380719,0.0003901,30]
[393981596,1763158834072,187.78006525,0.0003901,30]
[393981597,1763158834445,168.3888056,0.0003901,30]
[393981598,1763158834810,194.72792766,0.0003901,30]
[393981599,1763158835086,174.61919141,0.0003901,30]
[393981600,1763158835305,201.93286099,0.0003901,30]
[393981601,1763158835421,250.0,0.0003901,30]
[393981602,1763158835782,181.08010149,0.0003901,30]
[393981603,1763158835963,209.40437684,0.0003901,30]
[393981604,1763158836250,250.0,0.0003901,30]
[393981605,1763158836379,187.78006525,0.0003901,30]
[393981606,1763158836606,217.15233878,0.0003901,30]
[393981607,1763158836854,250.0,0.0003901,30]
[393981608,1763158836994,194.72792766,0.0003901,30]
[393981609,1763158837218,225.18697532,0.0003901,30]
[393981610,1763158837469,250.0,0.0003901,30]
[393981611,1763158837765,201.93286099,0.0003901,30]
[393981612,1763158837858,233.51889341,0.0003901,30]
[393981613,1763158838084,250.0,0.0003901,30]
[393981614,1763158838475,209.40437684,0.0003901,30]
[393981615,1763158838707,250.0,0.0003901,30]
[393981616,1763158838932,242.15909246,0.0003901,30]
[393981617,1763158839072,217.15233878,0.0003901,30]
[393981618,1763158839336,250.0,0.0003901,30]
[393981619,1763158839572,251.11897888,0.0003901,30]
[393981620,1763158839706,217.15233878,0.0003901,30]
[393981621,1763158839977,250.0,0.0003901,30]
[393981622,1763158840189,260.4103811,0.0003901,30]
[393981623,1763158840586,250.0,0.0003901,30]
[393981624,1763158840841,270.0455652,0.0003901,30]
[393981625,1763158841207,250.0,0.0003901,30]
[393981626,1763158841462,280.03725112,0.0003901,30]
[393981627,1763158841807,250.0,0.0003901,30]
[393981628,1763158842070,290.39862941,0.0003901,30]
[393981629,1763158842445,250.0,0.0003901,30]
[393981630,1763158842669,290.39862941,0.0003901,30]
[393981631,1763158843417,151.0,0.0003901,30]
[393981632,1763158843507,250.0,0.0003901,30]
[393981633,1763158843683,151.0,0.0003901,30]
[393981634,1763158844296,151.0,0.0003901,30]
[393981635,1763158844948,151.0,0.0003901,30]
[393981636,1763158845530,151.0,0.0003901,30]
[393981637,1763158845785,151.0,0.0003901,30]
[393981638,1763158846126,151.0,0.0003901,30]
[393981639,1763158846407,151.0,0.0003901,30]
[393981640,1763158846537,151.0,0.0003901,30]
[393981641,1763158846760,151.0,0.0003901,30]
[393981642,1763158847003,151.0,0.0003901,30]
[393981643,1763158847150,156.587,0.0003901,30]
[393981644,1763158847593,151.0,0.0003901,30]
[393981645,1763158847890,162.380719,0.0003901,30]
[393981646,1763158848361,168.3888056,0.0003901,30]
[393981647,1763158848457,151.0,0.0003901,30]
[393981648,1763158848984,174.61919141,0.0003901,30]
[393981649,1763158849068,151.0,0.0003901,30]
[393981650,1763158849591,181.08010149,0.0003901,30]
[393981651,1763158850205,181.08010149,0.0003901,30]
[393981652,1763158858543,-418.96563734,0.00019999,2]
[393981653,1763158862078,150.0,0.00018901,2]
[393981654,1763158862480,150.0,0.00019801,2]
[393981656,1763158873909,250.0,0.0003901,10]
[393981657,1763158874894,250.0,0.0003901,10]
[393981658,1763158875845,250.0,0.0003901,10]
[393981659,1763158937221,150.0,0.00018968,2]
[393981660,1763158937614,150.0,0.00019872,2]